Cogmind - Beta 10 X1 @@@ ROGUE MODE // 2020.06.20 @ 21:56:27 Player: SirMrDrProf Result: Self-destructed Performance ------------- Evolutions (1) 500 Regions Visited (5) 1000 Robots Destroyed (22) 110 Value Destroyed (599) 599 Prototype IDs (2) 40 Alien Tech Used (0) 0 Bonus (217) 217 TOTAL SCORE: 2466 Bonus ------- Pacifist 200 High Alert Combat Kills 17 Cogmind --------- Core Integrity 108/400 Matter 244/300 Energy 236/240 System Corruption 0% Temperature Cool (4) Movement Flying (34) Location -9/Exiles Parts ------- > --- POWER (1) -------- Nuclear Core > --- PROPULSION (3) --- Flight Unit Improved Flight Unit > --- UTILITY (3) ------ Visual Processing Unit Signal Interpreter > --- WEAPON (2) ------- (None) > --- INVENTORY (4) ---- Medium Storage Unit Light Assault Rifle Peak State ------------ > --- POWER ------------ Nuclear Core > --- PROPULSION ------- Flight Unit Flight Unit Flight Unit > --- UTILITY ---------- Improved Heat Sink Visual Processing Unit Signal Interpreter > --- WEAPON ----------- Medium Laser Advanced Beam Cannon > --- INVENTORY -------- Flight Unit Improved Flight Unit Medium Storage Unit Light Assault Rifle [Rating: 16] Favorites ----------- Power Nuclear Core Engine Light Ion Engine Power Core Nuclear Core Propulsion Flight Unit Treads Advanced Treads Flight Unit Flight Unit Utility Improved Heat Sink Device Improved Heat Sink Processor Visual Processing Unit Protection Light Armor Plating Weapon Light Assault Rifle Energy Gun Medium Laser Energy Cannon Advanced Beam Cannon Ballistic Gun Light Assault Rifle Build | -11 -10 -10 -9 -9 -9 ------- Run | Scr Mat Min Mat Min Exi Slots Evolved 2 | . . . 2 . . Power . | . . . . . . Propulsion 1 | . . . 1 . . Utility 1 | . . . 1 . . Weapon . | . . . . . . Parts Attached 25 | 2 . . 23 . . Power 2 | . . . 2 . . Engine 1 | . . . 1 . . Core 1 | . . . 1 . . Reactor . | . . . . . . Propulsion 11 | . . . 11 . . Treads 4 | . . . 4 . . Leg . | . . . . . . Wheel . | . . . . . . Hover . | . . . . . . Flight 7 | . . . 7 . . Utility 4 | . . . 4 . . Device 1 | . . . 1 . . Storage . | . . . . . . Processor 2 | . . . 2 . . Hackware . | . . . . . . Protection 1 | . . . 1 . . Artifact . | . . . . . . Weapon 8 | 2 . . 6 . . Energy Gun 1 | . . . 1 . . Energy Cannon 2 | . . . 2 . . Ballistic Gun 5 | 2 . . 3 . . Ballistic Cannon . | . . . . . . Launcher . | . . . . . . Special Weapon . | . . . . . . Impact Weapon . | . . . . . . Slashing Weapon . | . . . . . . Piercing Weapon . | . . . . . . Special Melee Weapon . | . . . . . . Unidentified Prototypes 2 | . . . 2 . . Parts Lost 9 | . . . 9 . . Power . | . . . . . . Propulsion 4 | . . . 4 . . Utility 2 | . . . 2 . . Weapon 3 | . . . 3 . . Highest Loss Streak 8 | . . . 8 . . Average Slot Usage (%) 59 | . 28 28 68 55 55 Core 4 | . . . 5 11 11 Treads 9 | . . . 13 . . Flight 14 | . . . 17 22 22 Device 4 | . . . 5 . . Processor 4 | . . . 5 22 22 Ballistic Gun 20 | . 28 28 19 . . Naked Turns . | . . . . . . Heaviest Build 11 | 3 3 3 11 7 7 Greatest Support 66 | 3 3 3 66 10 10 Greatest Overweight (x) . | . . . . . . Average Overweight (x) . | . . . . . . Largest Inventory Capacity 4 | 4 4 4 4 4 4 Average Capacity 4 | 4 4 4 4 4 4 Most Carried 4 | 3 4 4 4 2 2 Average Carried 3 | 1 3 4 3 2 2 Final Capacity 4 | 4 4 4 4 4 4 Final Carried 4 | 3 4 4 2 2 2 Class Distribution -------------------- 83% | Mutant 16% | Scavenger-Mutant Dominant Class ---------------- Mutant | -10/Materials Mutant | -10/Mines Mutant | -9/Materials Mutant | -9/Mines Mutant | -9/Exiles Resources | -11 -10 -10 -9 -9 -9 ----------- Run | Scr Mat Min Mat Min Exi Matter Collected 515 | 137 . . 378 . . Remotely . | . . . . . . Salvage Created 763 | . . . 763 . . Parts 51 | . . . 51 . . Haulers Intercepted . | . . . . . . Recyclers Shooed . | . . . . . . Parts Field Recycled . | . . . . . . Retrieved Matter . | . . . . . . Parts Self-Destructed . | . . . . . . Prevented . | . . . . . . Kills | -11 -10 -10 -9 -9 -9 ------- Run | Scr Mat Min Mat Min Exi Combat Hostiles Destroyed 21 | . . . 21 . . Guns 17 | . . . 17 . . Cannons 4 | . . . 4 . . Classes Destroyed 6 | . . . 6 . . Watcher 1 | . . . 1 . . Swarmer 8 | . . . 8 . . Grunt 8 | . . . 8 . . Brawler 1 | . . . 1 . . Duelist 1 | . . . 1 . . Sentry 3 | . . . 3 . . Best Kill Streak 9 | . . . 9 . . Combat Bots Only 9 | . . . 9 . . Max Kills in Single Turn 2 | . . . 2 . . Gunslinging 1 | . . . 1 . . Exploded . | . . . . . . Melee . | . . . . . . Uniques/NPCs Destroyed . | . . . . . . Combat | -11 -10 -10 -9 -9 -9 -------- Run | Scr Mat Min Mat Min Exi Damage Taken 1280 | . . . 1280 . . Core 292 | . . . 292 . . Absorbed by Shields . | . . . . . . Core Remaining (%) 100 | 100 . 100 . . . Volleys Fired 61 | . . . 61 . . Largest 2 | . . . 2 . . Hottest 68 | . . . 68 . . Shots Fired 105 | . . . 105 . . Gun 88 | . . . 88 . . Cannon 17 | . . . 17 . . Launcher . | . . . . . . Special . | . . . . . . Kinetic 88 | . . . 88 . . Thermal 17 | . . . 17 . . Explosive . | . . . . . . Electromagnetic . | . . . . . . Robot Hit Streak 18 | . . . 18 . . Robot Miss Streak 4 | . . . 4 . . Penetration Max . | . . . . . . Secondary Targets 2 | . . . 2 . . Max Gunslinging Chain 1 | . . . 1 . . Shots Hit Robots 73 | . . . 73 . . Core Hits 35 | . . . 35 . . Critical Hits 2 | . . . 2 . . Critical Kills 1 | . . . 1 . . Critical Parts Destroyed . | . . . . . . Melee Attacks . | . . . . . . Impact . | . . . . . . Slashing . | . . . . . . Piercing . | . . . . . . Sneak Attacks . | . . . . . . Combat Hostiles . | . . . . . . Follow-up Attacks . | . . . . . . Damage Inflicted 889 | . . . 889 . . Guns 601 | . . . 601 . . Cannons 288 | . . . 288 . . Explosions . | . . . . . . Melee . | . . . . . . Ramming . | . . . . . . Kinetic 601 | . . . 601 . . Thermal 288 | . . . 288 . . Explosive . | . . . . . . Electromagnetic . | . . . . . . Impact . | . . . . . . Slashing . | . . . . . . Piercing . | . . . . . . Highest Corruption . | . . . . . . Average Corruption . | . . . . . . Corruption Purged . | . . . . . . Overload Shots . | . . . . . . Overflow Damage . | . . . . . . Projectiles . | . . . . . . Explosions . | . . . . . . Melee . | . . . . . . Knockbacks . | . . . . . . Impact . | . . . . . . Kinetic . | . . . . . . Secondary . | . . . . . . Self-Inflicted Damage . | . . . . . . Shots . | . . . . . . Rammed . | . . . . . . Targets Rammed . | . . . . . . Kicked . | . . . . . . Crushed . | . . . . . . Highest Temperature 256 | . . . 256 . . Average Temperature 108 | . . . 108 . . Received Heat Transfer 372 | . . . 372 . . Siege Activations . | . . . . . . Robots Corrupted . | . . . . . . Combat Hostiles . | . . . . . . Parts Fried . | . . . . . . Impact Corruptions . | . . . . . . Robots Melted . | . . . . . . Combat Hostiles . | . . . . . . Parts Melted 4 | . . . 4 . . Heat Transferred 518 | . . . 518 . . Parts Sabotaged . | . . . . . . Parts Stolen . | . . . . . . Parts Stripped . | . . . . . . Power Chain Reactions . | . . . . . . Missiles Intercepted . | . . . . . . Alert | -11 -10 -10 -9 -9 -9 ------- Run | Scr Mat Min Mat Min Exi Peak Influence 481 | . . . 481 160 . Average Influence 197 | . . . 259 160 . Maximum Alert Level 2 | . . . 2 . . Low Security (%) 48 | 100 100 100 32 100 . Level 1 34 | . . . 46 . . Level 2 16 | . . . 21 . . Level 3 . | . . . . . . Level 4 . | . . . . . . Level 5 . | . . . . . . High Security . | . . . . . . Max Security . | . . . . . . Squads Dispatched 4 | . . . 4 . . Investigation . | . . . . . . Extermination . | . . . . . . Reinforcement 4 | . . . 4 . . Assault . | . . . . . . Garrison . | . . . . . . Intercept . | . . . . . . Construction Impeded . | . . . . . . Haulers Reinforced . | . . . . . . Stealth | -11 -10 -10 -9 -9 -9 --------- Run | Scr Mat Min Mat Min Exi Distress Signals 2 | . . . 2 . . Communications Jammed . | . . . . . . Distress Signals . | . . . . . . Times Spotted 53 | . . . 53 . . Peak Tracking Total 10 | . . . 10 . . Tactical Retreats 8 | . . . 8 . . Traps | -11 -10 -10 -9 -9 -9 ------- Run | Scr Mat Min Mat Min Exi Traps Triggered . | . . . . . . Indirectly . | . . . . . . Trap Hack Attempts . | . . . . . . Triggered . | . . . . . . Disarmed . | . . . . . . Reprogrammed . | . . . . . . Reused . | . . . . . . Traps Extracted . | . . . . . . Installed . | . . . . . . Triggered . | . . . . . . Machines | -11 -10 -10 -9 -9 -9 ---------- Run | Scr Mat Min Mat Min Exi Machines Disabled . | . . . . . . Max in Single Turn . | . . . . . . Machines Sabotaged . | . . . . . . Garrisons Compromised . | . . . . . . Overloaded Fab Kills . | . . . . . . Fab Network Shutdowns . | . . . . . . Hacking | -11 -10 -10 -9 -9 -9 --------- Run | Scr Mat Min Mat Min Exi Machines Accessed 4 | . . . 4 . . Terminals 4 | . . . 4 . . Fabricators . | . . . . . . Repair Stations . | . . . . . . Recycling Units . | . . . . . . Scanalyzers . | . . . . . . Garrison Access . | . . . . . . Total Hacks 11 | . . . 11 . . Successful 1 | . . . 1 . . Failed 10 | . . . 10 . . Catastrophic . | . . . . . . Database Lockouts . | . . . . . . Manual 9 | . . . 8 . 1 Terminals 11 | . . . 11 . . Fabricators . | . . . . . . Repair Stations . | . . . . . . Recycling Units . | . . . . . . Scanalyzers . | . . . . . . Garrison Access . | . . . . . . Terminal Hacks 1 | . . . 1 . . Locate Traps 1 | . . . 1 . . Fabricator Hacks . | . . . . . . Repair Station Hacks . | . . . . . . Recycling Unit Hacks . | . . . . . . Scanalyzer . | . . . . . . Garrison Access Hacks . | . . . . . . Unauthorized Hacks . | . . . . . . Terminals . | . . . . . . Fabricators . | . . . . . . Repair Stations . | . . . . . . Recycling Units . | . . . . . . Scanalyzers . | . . . . . . Garrison Access . | . . . . . . Data Cores Recovered . | . . . . . . Used . | . . . . . . Hacking Detections 4 | . . . 4 . . Full Trace Events . | . . . . . . Feedback Events . | . . . . . . Feedback Blocked . | . . . . . . Robot Schematics Acquired . | . . . . . . Robots Built . | . . . . . . Matter . | . . . . . . Time . | . . . . . . Total Robot Build Rating . | . . . . . . Part Schematics Acquired . | . . . . . . Parts Built . | . . . . . . Matter . | . . . . . . Time . | . . . . . . Total Part Build Rating . | . . . . . . Parts Repaired . | . . . . . . Time . | . . . . . . Parts Recycled . | . . . . . . Recycled Matter . | . . . . . . Retrieved Matter . | . . . . . . Retrieved Components . | . . . . . . Parts Scanalyzed . | . . . . . . Part Schematics Acquired . | . . . . . . Parts Damaged . | . . . . . . Bothacking | -11 -10 -10 -9 -9 -9 ------------ Run | Scr Mat Min Mat Min Exi Used RIF Installer . | . . . . . . Robots Hacked . | . . . . . . Non-combat . | . . . . . . Combat . | . . . . . . Robot Hacks Applied . | . . . . . . Relay Couplers Released . | . . . . . . Robots Rewired . | . . . . . . Allies Hacked . | . . . . . . Hacks Repelled . | . . . . . . Allies | -11 -10 -10 -9 -9 -9 -------- Run | Scr Mat Min Mat Min Exi Total Allies . | . . . . . . Largest Group . | . . . . . . Highest-Rated Group . | . . . . . . Highest-Rated Ally . | . . . . . . Total Orders . | . . . . . . Ally Attacks . | . . . . . . Total Damage . | . . . . . . Kills . | . . . . . . Allies Corrupted . | . . . . . . Allies Melted . | . . . . . . Intel | -11 -10 -10 -9 -9 -9 ------- Run | Scr Mat Min Mat Min Exi Robot Analysis Total . | . . . . . . Derelict Logs Recovered . | . . . . . . Drone Launches . | . . . . . . Drone Recoveries . | . . . . . . Exploration | -11 -10 -10 -9 -9 -9 ------------- Run | Scr Mat Min Mat Min Exi Turns Passed 758 | 27 47 96 547 5 36 Spaces Moved 934 | 42 92 34 646 15 105 Core 331 | 42 92 34 163 . . Treads 3 | . . . 3 . . Legs . | . . . . . . Wheels . | . . . . . . Hover . | . . . . . . Flight 600 | . . . 480 15 105 Fastest Speed 34 | 50 50 50 34 34 34 Average Speed 40 | 50 50 50 38 34 34 Slowest Speed 145 | 50 50 50 145 34 34 Overloaded Moves . | . . . . . . Propulsion Burnouts . | . . . . . . Robots Hopped 10 | . . . 10 . . Cave-ins Triggered . | . . . . . . Exploration Rate (%) 25 | 4 26 17 58 6 43 Regions Visited 5 Branch Regions 3 Pre-discovered Areas . | . . . . . . Known Exits Taken 2 | . . . 1 1 . Unknown Exits Taken 3 | 1 1 1 . . . Scrap Searched . | . . . . . . Spaces Dug . | . . . . . . Terrain Destroyed . | . . . . . . Melee . | . . . . . . Projectile . | . . . . . . AOE . | . . . . . . Actions | -11 -10 -10 -9 -9 -9 --------- Run | Scr Mat Min Mat Min Exi Total 1202 | 46 92 112 833 14 105 Wait 176 | . . 79 97 . . Move 911 | 41 91 33 627 14 105 Hop 8 | . . . 8 . . Pick Up 10 | 3 1 . 6 . . Fast Attach 17 | 2 . . 15 . . Attach 6 | . . . 6 . . Detach . | . . . . . . Swap 2 | . . . 2 . . Drop 11 | . . . 11 . . Fire 61 | . . . 61 . . Melee . | . . . . . . Ram . | . . . . . . Kick . | . . . . . . Crush . | . . . . . . Escape Stasis . | . . . . . . Rewire . | . . . . . . Trap . | . . . . . . Miscellaneous . | . . . . . . Route ------- -11/Scrapyard -10/Materials -10/Mines -9/Materials (discovered 5 exits: *Mat x3 / *Min / [*Sto]) -9/Mines -9/Exiles (discovered 1 exit: [*Min]) History --------- Turn | Location | Event 8 | -11/Scrapyard | Discovered new exit (range 16) 28 | -11/Scrapyard | Entered Materials 55 | -10/Materials | Discovered new exit (range 9) 75 | -10/Materials | Entered Mines 80 | -10/Mines | Discovered new exit (range 12) 86 | -10/Mines | Assembled infested the area 171 | -10/Mines | Entered Materials 171 | -9/Materials | Evolved 2 slots: Propulsion x1, Utility x1 302 | -9/Materials | Build established: Mutant 380 | -9/Materials | Destroyed 9 combat bots 428 | -9/Materials | Discovered new exit (range 11) 457 | -9/Materials | Discovered new exit (range 14) 608 | -9/Materials | Discovered new exit (range 3) 643 | -9/Materials | Core integrity fell below 50% 647 | -9/Materials | Discovered new exit (range 17) 658 | -9/Materials | Identified exit to Materials 712 | -9/Materials | Discovered new exit (range 18) 718 | -9/Materials | Identified exit to Mines 718 | -9/Materials | Entered Mines 722 | -9/Mines | Deemed a non-threat by the Exiles lab entrance 722 | -9/Mines | Discovered new exit (range 5) 723 | -9/Mines | Met a Derelict bent on vengeance 723 | -9/Mines | Identified exit to Exiles 723 | -9/Mines | Entered Exiles 723 | -9/Exiles | Found Exiles lab destroyed 728 | -9/Exiles | Discovered new exit (range 16) 737 | -9/Exiles | Lost 8 parts (4n2u2w) 758 | -9/Exiles | Opened EX-Vault 759 | -9/Exiles | Self-destructed Last Messages --------------- 00699_ Identified Imp. Flight Unit. 00699_ K-01 Serf collects debris. 00700_ K-01 Serf destroyed. 00700_ Acquired Lgt. Armor Plating. 00700_ K-01 Serf collects debris. 00706_ Lgt. Armor Plating destroyed. 00712_ T-07 Excavator is excavating. 00712_ EXIT=FOUND 00716_ T-07 Excavator is excavating. 00718_ EXIT=IDENTIFIED: MINES LOCATION=MINES GOAL=ESCAPE Something is scanning the area. 00722_ "No threat detected, you may enter." 00722_ EXIT=FOUND 00723_ EXIT=IDENTIFIED: EXILES LOCATION=EXILES GOAL=ESCAPE 00728_ EXIT=FOUND 00758_ Connecting with EX-Vault Access... Map ----- +----------------------------------------------------+ | | | | | | | | | | | | | | | | | | | | | | | | | | | | | | | | | | | | | | | | | | | | | | | ?????????????????????#########???????????????????? | | ?????????????????????# #???????????????????? | | ?????????????????????# @ #???????????????????? | | ?????????????????????# #???????????????????? | | ?????????????????????# X#???????????????????? | | ?????????????????????## ##???????????????????? | | ?????????????????????#X #????????????????????? | | ?????????????????????##a #????????????????????? | | ??????????????????????# a #????????????????????? | | ??????????????????????# #???####?????????????? | | ??????????????????????# #??"""""#????????????? | | ??????????????????????# ## """#????????????? | | ??????????????????????# X""#????????????? | | ??????????????????????# ## """#????????????? | | ???????????????#####??# #??"""""#????????????? | | ??????????????#""""""?# #???####?????????????? | | ??????????????#""" ## #????????????????????? | | ??????????????#""X #????????????????????? | | ??????????????#" #????????????????????? | | ??????????????#" ## #????????????????????? | | ??????????????#" ?# #??#######???????????? | | ????????????# ###??# #??"""""""#??????????? | | ???????????# ??????# #??"""""""#??????????? | | ??????????? ????????# #?#" """#??????????? | | ??????????? ????????## ## ""#??????????? | | ?????????????????????#" ""#??????????? | | ?????????????????????#" "#??????????? | +----------------------------------------------------+ Best States ------------- Heat Dissipation 42 Energy Generation 14 Energy Capacity 240 Matter Stores 300 Matter Capacity 300 Sight Range 18 Terrain Scan Density 10 Evasion (%) 63 Recoil Reduction 3 Item Schematics ----------------- None Robot Schematics ------------------ None Fabricated ------------ Nothing Alien Tech Used ----------------- None Achievements -------------- None Challenges ------------ None Game ------ Seed DefenseDeepPick Manual? 0 Play Time 00:10:37 Cumulative 295.4 hours Start 2020.06.20 @ 21:46:21 End 2020.06.20 @ 21:56:27 Sessions 1 Manual Loads 0 Difficulty Rogue Special Mode None Game No. 166 Rogue 166 Adventurer 0 Explorer 0 Win Type - Total 19 Types 9/5/3/1/0/0/1 Lore% 93 Gallery% 91 Achievement% 77 Wizard Run 0 Options --------- ASCII 0 Keyboard 0 Movement Numpad Keybinds 0 Fullscreen 2 Font 18/SmallcapsGlow Map View 76x50 Tactical HUD 1 Map Filters NONE Filters NONE Steam 1 RUN: 2674e49a-ed4a-4bcf-bb3d-982a8dae0cb5